bitfinex/quotes_BTCUSD_20250604
["timestamp","ask_amount","ask_price","bid_price","bid_amount"]
[1749031610502,1.19157472,105770.0,105760.0,0.12820395]
[1749031610731,1.19157472,105770.0,105760.0,0.41784395]
[1749031614515,1.19158072,105770.0,105760.0,0.41784395]
[1749031618536,1.19158251,105770.0,105760.0,0.41784395]
[1749031621093,0.40531531,105770.0,105760.0,0.41784395]
[1749031621312,1.19158334,105770.0,105760.0,0.41784395]
[1749031622767,1.19133781,105770.0,105760.0,0.41784395]
[1749031623227,1.19133781,105770.0,105760.0,0.39864395]
[1749031623453,1.19133781,105770.0,105760.0,0.37974395]
[1749031624262,1.19133781,105770.0,105760.0,0.99290086]
[1749031624263,4e-05,105770.0,105760.0,0.99290086]
[1749031624713,4e-05,105770.0,105760.0,1.38603446]
[1749031624927,4e-05,105770.0,105760.0,0.99290086]
[1749031625370,4e-05,105770.0,105760.0,0.99190086]
[1749031625812,4e-05,105770.0,105760.0,0.99690086]
[1749031626080,4e-05,105770.0,105760.0,0.60376726]
[1749031626310,4e-05,105770.0,105760.0,0.99190086]
[1749031626553,4e-05,105770.0,105760.0,1.00290086]
[1749031626763,4e-05,105770.0,105760.0,0.99790086]
[1749031626978,4e-05,105770.0,105760.0,1.00390086]
[1749031628102,4e-05,105770.0,105760.0,0.94250075]
[1749031628328,4e-05,105770.0,105760.0,1.33563435]
[1749031628770,0.34,105790.0,105760.0,1.29743435]
[1749031628990,0.3931736,105810.0,105790.0,0.0389]
[1749031629277,0.3931336,105800.0,105790.0,0.27212]
[1749031629498,0.3931336,105800.0,105790.0,0.89592]
[1749031629723,0.3931336,105800.0,105790.0,0.93482]
[1749031630168,0.3931336,105800.0,105790.0,0.93682]
[1749031630376,0.3931336,105800.0,105790.0,0.93482]
[1749031630650,0.3931336,105800.0,105790.0,0.93682]
[1749031631074,0.34004,105810.0,105800.0,0.0404]
[1749031631075,0.3931736,105810.0,105800.0,0.0404]
[1749031631291,0.3931736,105810.0,105800.0,0.1362543]
[1749031631292,0.39272357,105810.0,105800.0,0.1362543]
[1749031631536,4e-05,105810.0,105800.0,0.1374205]
[1749031632272,8.791e-05,105810.0,105800.0,0.1374205]
[1749031633200,0.39277148,105810.0,105800.0,0.1362543]
[1749031633841,0.39277148,105810.0,105800.0,0.1374205]
[1749031634743,8.791e-05,105810.0,105800.0,0.1374205]
[1749031635814,8.791e-05,105810.0,105800.0,0.1394205]
[1749031636244,8.791e-05,105810.0,105800.0,0.1402543]
[1749031636961,0.39265485,105820.0,105810.0,0.0415]
[1749031638938,0.39268357,105820.0,105810.0,0.42020395]
[1749031639830,0.73268357,105820.0,105810.0,0.42020395]
[1749031640052,0.34,105820.0,105810.0,0.51555825]
[1749031640481,0.73268357,105820.0,105810.0,0.51555825]
[1749031640702,0.39268357,105820.0,105810.0,0.51555825]
[1749031640920,0.39268357,105820.0,105810.0,0.51755825]
[1749031642689,0.39268357,105820.0,105810.0,0.51955825]
[1749031643121,0.34927337,105830.0,105820.0,0.0411]
[1749031643378,0.74195694,105830.0,105820.0,0.04226535]
[1749031643835,0.74195694,105830.0,105820.0,0.0411]
[1749031644536,0.74195694,105830.0,105820.0,0.379]
[1749031644802,0.74195694,105830.0,105820.0,0.08896]
[1749031645027,0.74195694,105830.0,105820.0,0.379]
[1749031647289,0.73268357,105830.0,105820.0,0.379]
[1749031647746,0.74222816,105830.0,105820.0,0.379]
[1749031648419,0.74222816,105830.0,105810.0,0.13709825]
[1749031648610,0.34954459,105830.0,105820.0,0.37896]
[1749031650018,0.74222816,105830.0,105820.0,0.37896]
[1749031651339,0.74222816,105830.0,105820.0,0.850639]
[1749031652256,0.73222816,105830.0,105820.0,0.850639]
[1749031655804,0.74222816,105830.0,105820.0,0.850639]
[1749031656258,0.74222816,105830.0,105820.0,1.095399]
[1749031656516,0.74222816,105830.0,105820.0,1.10429398]
[1749031656990,0.74222816,105830.0,105820.0,1.095399]
[1749031657218,0.74222816,105830.0,105820.0,1.10426164]
[1749031657917,0.34954459,105830.0,105820.0,1.10426164]
[1749031658138,0.74222816,105830.0,105820.0,1.10426164]
[1749031658766,0.74222816,105830.0,105820.0,1.10558164]
[1749031659182,0.74222816,105830.0,105820.0,0.72530164]
[1749031659399,1.13484063,105830.0,105820.0,1.10554164]
[1749031660023,1.13484063,105830.0,105820.0,1.10550164]
[1749031660300,0.34954459,105830.0,105820.0,1.10550164]
[1749031660494,1.13484063,105830.0,105820.0,1.14400164]
[1749031665177,1.13484063,105830.0,105820.0,1.12440164]
[1749031666142,1.13484063,105830.0,105820.0,1.14380164]
[1749031666589,1.13484063,105830.0,105820.0,1.14377881]
[1749031667220,0.34954459,105830.0,105820.0,1.23963311]
[1749031667442,0.73264802,105830.0,105820.0,1.23963311]
[1749031669291,0.73255809,105830.0,105820.0,1.23963311]
[1749031670527,0.73255809,105830.0,105820.0,1.23961204]
[1749031671827,0.34,105830.0,105820.0,1.23961204]
[1749031672054,0.73255809,105830.0,105820.0,1.23961204]
[1749031672964,0.73255809,105830.0,105820.0,0.85941204]
[1749031673186,0.73255809,105830.0,105820.0,1.24161204]
[1749031673861,0.34,105830.0,105820.0,1.24161204]
[1749031674539,0.34,105830.0,105820.0,1.2327933]
[1749031674540,0.73255809,105830.0,105820.0,1.2327933]
[1749031674753,0.73255809,105830.0,105820.0,1.24158029]
[1749031674966,0.73255809,105830.0,105820.0,1.24174029]
[1749031678753,0.73255809,105830.0,105820.0,1.24162778]
[1749031680832,0.73255809,105830.0,105820.0,0.94934778]
[1749031681024,0.73255809,105830.0,105820.0,1.24142778]
[1749031681434,0.73255809,105830.0,105820.0,1.2414267]
[1749031683463,0.73255809,105830.0,105820.0,1.2401867]
[1749031684797,0.73255809,105830.0,105820.0,1.2205067]
[1749031685456,0.73255809,105830.0,105820.0,1.2412067]
[1749031685676,0.73255809,105830.0,105820.0,1.24123609]
[1749031686327,0.73255809,105830.0,105820.0,1.24111492]
[1749031688711,0.34,105830.0,105820.0,1.24111492]
[1749031688922,0.73255809,105830.0,105820.0,1.24111492]
[1749031689759,0.73255809,105830.0,105820.0,1.24109536]
[1749031690416,0.73255809,105830.0,105820.0,1.51301536]
[1749031692111,0.34,105830.0,105820.0,1.51301536]
[1749031692342,0.73255809,105830.0,105820.0,1.51301536]
[1749031693178,0.73257664,105830.0,105820.0,1.51301536]
[1749031695130,0.34,105830.0,105820.0,1.51301536]
[1749031695344,0.73257664,105830.0,105820.0,1.51301536]
[1749031698112,0.73257664,105830.0,105820.0,1.51302705]
[1749031702315,0.73257664,105830.0,105820.0,1.51302421]
[1749031703189,0.73257664,105830.0,105820.0,1.13114421]
[1749031703403,0.73257664,105830.0,105820.0,1.51310421]
[1749031705543,0.34,105830.0,105820.0,1.51310421]
[1749031705753,0.73257664,105830.0,105820.0,1.51310421]
[1749031706439,0.73257664,105830.0,105820.0,1.51310614]
[1749031710551,0.73257664,105830.0,105820.0,1.51311625]
[1749031711690,4e-05,105850.0,105820.0,2.25866953]
[1749031711916,4e-05,105850.0,105840.0,0.0379]
[1749031712141,4e-05,105850.0,105840.0,0.14245842]
[1749031712808,0.73261664,105850.0,105840.0,0.14245842]
[1749031713041,0.39261664,105850.0,105840.0,0.14245842]
[1749031713266,0.34004,105850.0,105840.0,0.14245842]
[1749031713711,0.34004,105850.0,105840.0,0.14845842]
[1749031714465,0.34004,105850.0,105840.0,0.14842589]
[1749031718680,0.34004,105850.0,105840.0,0.14835861]
[1749031722679,0.34004,105850.0,105840.0,0.14835861]
[1749031725420,4e-05,105850.0,105840.0,0.14835861]
[1749031730417,4e-05,105850.0,105840.0,0.5225943]
[1749031731297,4e-05,105850.0,105840.0,0.5224743]
[1749031731446,0.34004,105850.0,105840.0,0.5224743]
[1749031738683,0.34004,105850.0,105840.0,0.7671143]
[1749031741421,0.73237526,105850.0,105840.0,0.7671143]
[1749031742122,0.39237526,105850.0,105840.0,0.7671143]
[1749031743453,4e-05,105850.0,105840.0,1.0389543]
[1749031743672,0.39237526,105850.0,105840.0,1.0389543]
[1749031745009,0.39237526,105850.0,105840.0,1.03883278]
[1749031745759,1.16481052,105850.0,105840.0,0.1018543]
[1749031745977,1.16481052,105850.0,105840.0,0.61304]
[1749031745978,1.58780961,105850.0,105840.0,0.61304]
[1749031746208,1.58776961,105850.0,105840.0,0.61304]
[1749031746695,1.17415416,105850.0,105840.0,0.90504]
[1749031746961,1.17415416,105850.0,105840.0,0.51948]
[1749031746962,0.3801,105850.0,105840.0,0.51948]
[1749031747179,1.16477052,105850.0,105840.0,0.90452]
[1749031747399,0.77255951,105850.0,105840.0,0.90452]
[1749031747624,0.77255951,105850.0,105840.0,0.90152]
[1749031747848,0.77255951,105850.0,105840.0,0.90302]
[1749031748301,0.43255951,105850.0,105840.0,0.90302]
[1749031748538,0.41265951,105850.0,105840.0,1.2988743]
[1749031749020,0.41265951,105850.0,105840.0,0.9988743]
[1749031749450,0.41265951,105850.0,105840.0,1.2973943]
[1749031749672,0.41265951,105850.0,105840.0,0.9973943]
[1749031750333,2.0398,105860.0,105840.0,0.9973943]
[1749031750554,0.39245951,105850.0,105840.0,0.90154]
[1749031750770,0.39245951,105850.0,105840.0,0.9973943]
[1749031751187,0.39245951,105850.0,105840.0,1.00396094]
[1749031751419,0.39245951,105850.0,105840.0,1.00596094]
[1749031752607,0.41235951,105850.0,105840.0,0.62292094]
[1749031752826,0.41235951,105850.0,105840.0,1.00572094]
[1749031753037,0.41235951,105850.0,105840.0,0.71348094]
[1749031753251,0.43195951,105850.0,105840.0,1.00376094]
[1749031753460,0.43195951,105850.0,105840.0,1.00576094]
[1749031754344,0.43195951,105850.0,105840.0,1.00575637]
[1749031756740,0.0395,105850.0,105840.0,1.00575637]
[1749031756956,0.43195951,105850.0,105840.0,1.00575637]
[1749031757811,0.41235951,105850.0,105840.0,1.00575637]
[1749031758056,2.0389,105860.0,105840.0,1.00575637]
[1749031758278,2.0389,105860.0,105850.0,0.00116376]
[1749031758279,2.3789,105860.0,105850.0,0.00116376]
[1749031758494,2.77135951,105860.0,105850.0,0.00116376]
[1749031761228,2.77135951,105860.0,105850.0,0.0958543]
[1749031764053,2.77135951,105860.0,105850.0,0.3885743]
[1749031767210,2.77135951,105860.0,105850.0,0.0958543]
[1749031767428,2.77135951,105860.0,105850.0,0.29248]
[1749031768555,2.77135951,105860.0,105850.0,0.38344]
[1749031769197,2.3789,105860.0,105850.0,0.38344]
[1749031769422,2.77135951,105860.0,105850.0,0.38344]
[1749031769830,2.77135951,105860.0,105830.0,0.127699]
[1749031770034,0.39245951,105850.0,105840.0,0.0958543]
[1749031770226,0.39245951,105850.0,105840.0,0.4796143]
[1749031770431,2.3789,105860.0,105840.0,0.4796143]
[1749031770733,0.39245951,105850.0,105840.0,0.4796143]
[1749031771348,2.0,105860.0,105850.0,0.0176]
[1749031771526,2.39245951,105860.0,105850.0,0.13421767]
[1749031772114,2.0,105860.0,105850.0,0.13421767]
[1749031772318,2.39245951,105860.0,105850.0,0.1330543]
[1749031772767,2.0,105860.0,105850.0,0.1330543]
[1749031772979,2.39245951,105860.0,105850.0,0.1330543]
[1749031779123,2.39245951,105860.0,105850.0,0.3581343]
[1749031783165,2.39245951,105860.0,105850.0,0.3764343]
[1749031783627,2.0,105860.0,105850.0,0.3764343]
[1749031783850,2.39245951,105860.0,105850.0,0.3764343]
[1749031785220,2.39245951,105860.0,105850.0,0.3405343]
[1749031785464,2.39245951,105860.0,105850.0,0.6327743]
[1749031786874,2.73245951,105860.0,105850.0,0.6326943]
[1749031787121,2.73245951,105860.0,105850.0,0.3405343]
[1749031787368,2.34,105860.0,105850.0,0.6326543]
[1749031787604,2.73245951,105860.0,105850.0,0.6326543]
[1749031788320,2.73245951,105860.0,105850.0,0.9044943]
[1749031789653,2.34,105860.0,105850.0,0.9044943]
[1749031789896,2.73245951,105860.0,105850.0,0.9044943]
[1749031790846,2.39245951,105860.0,105850.0,0.9044943]
[1749031792663,2.0,105860.0,105850.0,0.9044943]
[1749031792883,2.39245951,105860.0,105850.0,0.9044943]
[1749031795293,2.0,105860.0,105850.0,0.9044943]
[1749031795503,2.39245951,105860.0,105850.0,0.9044943]
[1749031796735,2.39245951,105860.0,105850.0,0.9229943]
[1749031797408,2.39245951,105860.0,105850.0,0.9044943]
[1749031797830,2.39245951,105860.0,105850.0,0.9949743]
[1749031798326,2.0,105860.0,105850.0,0.9949743]
[1749031798545,2.39245951,105860.0,105850.0,0.9949743]
[1749031800259,2.0,105860.0,105850.0,0.9949743]
[1749031800480,2.0,105860.0,105850.0,0.9948543]
[1749031800706,2.39245951,105860.0,105850.0,0.9948543]
[1749031801792,2.73245951,105860.0,105850.0,0.9948543]
[1749031803835,2.73245951,105860.0,105850.0,0.9968943]
[1749031804966,2.73245951,105860.0,105850.0,1.0340943]
[1749031804967,2.34,105860.0,105850.0,1.0340943]
[1749031805200,2.73245951,105860.0,105850.0,1.0340943]
[1749031805420,3.12469306,105860.0,105850.0,0.9968943]
[1749031809447,2.34,105860.0,105850.0,0.9968943]
[1749031809669,3.12469306,105860.0,105850.0,0.9968943]
[1749031811474,3.12469306,105860.0,105850.0,1.0158943]
[1749031812995,3.12469306,105860.0,105850.0,0.9968943]
[1749031813718,2.34,105860.0,105850.0,0.9968943]
[1749031813935,3.12469306,105860.0,105850.0,0.9968943]
[1749031814396,3.12469306,105860.0,105850.0,1.0152943]
[1749031815048,3.12469306,105860.0,105850.0,1.0331943]
[1749031816021,2.78469306,105860.0,105850.0,1.0331943]
[1749031817118,2.0,105860.0,105850.0,1.0331943]
[1749031817306,2.78469306,105860.0,105850.0,1.0331943]
[1749031818144,2.78469306,105860.0,105850.0,1.0349543]
[1749031819474,2.0,105860.0,105850.0,1.0349543]
[1749031819692,2.78469306,105860.0,105850.0,1.0349543]
[1749031819908,2.0,105860.0,105850.0,1.0349543]
[1749031820124,2.78469306,105860.0,105850.0,1.0349543]
[1749031820968,2.78469306,105860.0,105850.0,1.04435157]
[1749031822460,2.0,105860.0,105850.0,1.04435157]
[1749031822677,2.78469306,105860.0,105850.0,1.04435157]
[1749031825281,2.0,105860.0,105850.0,1.04435157]
[1749031825461,2.39234653,105860.0,105850.0,1.04435157]
[1749031834244,2.39234653,105860.0,105850.0,1.04295157]
[1749031834668,2.39234653,105860.0,105850.0,0.65807157]
[1749031834882,2.39234653,105860.0,105850.0,0.9991343]
[1749031834883,2.78469306,105860.0,105850.0,0.9991343]
[1749031835096,2.80329306,105860.0,105850.0,0.9991343]
[1749031835297,2.0186,105860.0,105850.0,0.9991343]
[1749031837925,1.79025406,105860.0,105850.0,0.9991343]
[1749031839685,1.005561,105860.0,105850.0,0.9991343]
[1749031839889,1.79025406,105860.0,105850.0,0.9991343]
[1749031841047,2.13025406,105860.0,105850.0,0.9991343]
[1749031846360,1.79025406,105860.0,105850.0,0.9991343]
[1749031847349,1.79025406,105860.0,105850.0,0.6123743]
[1749031847566,1.79025406,105860.0,105850.0,0.9984543]
[1749031852193,1.79025406,105860.0,105850.0,0.7047743]
[1749031852420,1.82875406,105860.0,105850.0,0.6123743]
[1749031852640,2.56110059,105860.0,105850.0,0.9026]
[1749031852857,2.56110059,105860.0,105850.0,0.9028]
[1749031853085,2.56110059,105860.0,105850.0,0.60768]
[1749031853300,2.56110059,105860.0,105850.0,0.90288]
[1749031853507,2.56110059,105860.0,105850.0,0.90296]
[1749031853934,2.16875406,105860.0,105850.0,0.90296]
[1749031854976,2.10208739,105860.0,105850.0,0.90296]
[1749031855188,2.49443392,105860.0,105850.0,0.90296]
[1749031855990,2.10208739,105860.0,105850.0,0.90296]
[1749031857042,1.31739433,105860.0,105850.0,0.90296]
[1749031857246,2.10208739,105860.0,105850.0,0.90296]
[1749031857639,1.31739433,105860.0,105850.0,0.90296]
[1749031857845,2.10208739,105860.0,105850.0,0.90296]
[1749031859530,1.31739433,105860.0,105850.0,0.90296]
[1749031859738,1.31739433,105860.0,105850.0,0.60768]
[1749031859739,2.49443392,105860.0,105850.0,0.60768]
[1749031859966,2.49443392,105860.0,105850.0,0.90316]
[1749031860774,2.49443392,105860.0,105850.0,0.90328]
[1749031861155,2.49443392,105860.0,105850.0,0.51652]
[1749031861362,2.49443392,105860.0,105850.0,0.90332]
[1749031861744,2.49443392,105860.0,105850.0,0.60772]
[1749031861950,2.49443392,105860.0,105850.0,0.90332]
[1749031863517,1.31739433,105860.0,105850.0,0.90332]
[1749031863724,2.49443392,105860.0,105850.0,0.90332]
[1749031865797,1.27889433,105860.0,105850.0,0.90332]
[1749031866009,2.06358739,105860.0,105850.0,0.90332]
[1749031868996,2.06358739,105860.0,105850.0,0.94242]
[1749031870615,2.06358739,105860.0,105850.0,0.92292]
[1749031871646,2.06358739,105860.0,105850.0,0.90332]
[1749031871859,1.27889433,105860.0,105850.0,0.90332]
[1749031872062,2.06358739,105860.0,105850.0,0.90332]
[1749031876415,2.06358739,105860.0,105850.0,0.94432]
[1749031881390,2.06358739,105860.0,105850.0,0.92362]
[1749031881600,1.27889433,105860.0,105850.0,0.92362]
[1749031881810,2.06358739,105860.0,105850.0,0.92362]
[1749031882222,2.06358739,105860.0,105850.0,0.94272]
[1749031883807,2.06358739,105860.0,105850.0,1.0385743]
[1749031884018,1.72358739,105860.0,105850.0,1.0385743]
[1749031884998,1.72358739,105860.0,105850.0,0.6517743]
[1749031885216,1.72358739,105860.0,105850.0,1.0376543]
[1749031887106,1.72358739,105860.0,105850.0,0.90224]
[1749031887332,1.72358739,105860.0,105850.0,0.94334]
[1749031887554,1.72358739,105860.0,105850.0,0.90224]
[1749031888332,2.06358739,105860.0,105850.0,0.94314]
[1749031890060,1.72358739,105860.0,105850.0,0.94314]
[1749031895563,1.72358739,105860.0,105850.0,0.94282]
[1749031900142,2.49553392,105860.0,105850.0,0.51652]
[1749031900357,2.49553392,105860.0,105850.0,0.9016]
[1749031902368,2.49553392,105860.0,105850.0,0.60824]
[1749031902652,2.49553392,105860.0,105850.0,0.90152]
[1749031904639,2.49553392,105860.0,105850.0,0.90156]
[1749031904872,2.49553392,105860.0,105850.0,0.60824]
[1749031905076,2.49553392,105860.0,105850.0,0.51652]
[1749031905400,2.49553392,105860.0,105850.0,0.9016]
[1749031909272,2.10318739,105860.0,105850.0,0.9016]
[1749031909480,2.49553392,105860.0,105850.0,0.9016]
[1749031909909,2.42886725,105860.0,105850.0,0.9016]
[1749031910115,2.03652072,105860.0,105850.0,0.9016]
[1749031910295,2.42886725,105860.0,105850.0,0.9016]
[1749031912484,2.42891522,105860.0,105850.0,0.9016]
[1749031921169,2.42891522,105860.0,105850.0,0.62976]
[1749031921793,1.25187563,105860.0,105850.0,0.62976]
[1749031922003,2.42891522,105860.0,105850.0,0.62976]
[1749031925254,2.40821522,105860.0,105850.0,0.62976]
[1749031926241,1.99696869,105860.0,105850.0,0.62976]
[1749031926448,1.21227563,105860.0,105850.0,0.66976]
[1749031926729,1.99696869,105860.0,105850.0,0.66976]
[1749031927889,1.21227563,105860.0,105850.0,0.66976]
[1749031928089,1.99696869,105860.0,105850.0,0.66976]
[1749031928300,1.21227563,105860.0,105850.0,0.66976]
[1749031928501,1.99696869,105860.0,105850.0,0.66976]
[1749031928703,1.99696869,105860.0,105850.0,0.7656143]
[1749031930823,1.21227563,105860.0,105850.0,0.7656143]
[1749031931060,1.99696869,105860.0,105850.0,0.7656143]
[1749031931517,1.60462216,105860.0,105850.0,0.7656143]
[1749031931735,1.99696869,105860.0,105850.0,0.7645343]
[1749031932625,1.65696869,105860.0,105850.0,0.7645343]
[1749031934150,0.87227563,105860.0,105850.0,0.7645343]
[1749031934367,1.99696869,105860.0,105850.0,0.7645343]
[1749031937141,1.60462216,105860.0,105850.0,0.7645343]
[1749031937348,1.99696869,105860.0,105850.0,0.7645343]
[1749031937559,1.21227563,105860.0,105850.0,0.7645343]
[1749031937763,1.99696869,105860.0,105850.0,0.7645343]
[1749031940618,1.21227563,105860.0,105850.0,0.7645343]
[1749031940869,1.60462216,105860.0,105850.0,0.7645343]
[1749031941078,1.26462216,105860.0,105850.0,0.7645343]
[1749031941295,1.60462216,105860.0,105850.0,0.7645343]
[1749031941505,1.26462216,105860.0,105850.0,0.7645343]
[1749031942965,1.26462216,105860.0,105850.0,0.77907515]
[1749031943243,1.26462216,105860.0,105850.0,0.78825996]
[1749031944364,1.26462216,105860.0,105850.0,0.79225996]
[1749031945240,1.26218216,105860.0,105850.0,0.79225996]
[1749031945924,0.86983563,105860.0,105850.0,0.79225996]
[1749031946149,1.26218216,105860.0,105850.0,0.79225996]
[1749031947286,0.86983563,105860.0,105850.0,0.79225996]
[1749031947717,1.26218216,105860.0,105850.0,0.79225996]
[1749031951756,0.86983563,105860.0,105850.0,0.79225996]
[1749031951976,1.26218216,105860.0,105850.0,0.79225996]
[1749031952788,1.20983563,105860.0,105850.0,0.79225996]
[1749031952992,1.60218216,105860.0,105850.0,0.79225996]
[1749031957196,1.60218216,105860.0,105850.0,1.06409996]
[1749031959819,1.26218216,105860.0,105850.0,1.06409996]
[1749031960252,0.86983563,105860.0,105850.0,1.06409996]
[1749031960877,1.26218216,105860.0,105850.0,1.06409996]
[1749031961079,0.86983563,105860.0,105850.0,1.06409996]
[1749031963875,1.26218216,105860.0,105850.0,1.06409996]
[1749031964081,0.86983563,105860.0,105850.0,1.06409996]
[1749031964944,0.86983563,105860.0,105850.0,1.45644649]
[1749031965161,0.85507969,105860.0,105850.0,1.45644649]
[1749031968401,0.85507969,105860.0,105850.0,1.06409996]
[1749031968603,0.85507969,105860.0,105850.0,1.45644649]
[1749031971084,0.85507969,105860.0,105850.0,1.16416649]
[1749031971278,0.85507969,105860.0,105850.0,1.45668649]
[1749031976910,0.85507969,105860.0,105850.0,1.16416649]
[1749031977166,0.85507969,105860.0,105850.0,1.45628649]
[1749031981572,0.85507969,105860.0,105850.0,1.45480649]
[1749031982053,1.24742622,105860.0,105850.0,0.75081996]
[1749031982284,1.24742622,105860.0,105850.0,0.66029996]
[1749031982509,1.24742622,105860.0,105850.0,1.04257996]
[1749031983230,1.24742622,105860.0,105850.0,0.66029996]
[1749031983491,1.24742622,105860.0,105850.0,1.02233996]
[1749031983718,1.24742622,105860.0,105850.0,1.04113996]
[1749031984419,1.24742622,105860.0,105850.0,1.06093996]
[1749031985922,0.85507969,105860.0,105850.0,1.06093996]
[1749031986140,0.85507969,105860.0,105850.0,1.45328649]
[1749031987017,0.85507969,105860.0,105850.0,1.06093996]
[1749031992869,0.85507969,105860.0,105850.0,1.06089996]
[1749031994402,1.24742622,105860.0,105850.0,1.06089996]
[1749031996008,1.24742622,105860.0,105850.0,1.02217996]
[1749031996009,1.60652622,105860.0,105850.0,1.02217996]
[1749031996224,1.26652622,105860.0,105850.0,1.02217996]
[1749031996440,1.24742622,105860.0,105850.0,1.02217996]
[1749031997778,1.26652622,105860.0,105850.0,1.02217996]
[1749031999058,1.24742622,105860.0,105850.0,1.02217996]
[1749032005733,1.63977275,105860.0,105850.0,1.02217996]
[1749032006518,0.85507969,105860.0,105850.0,1.02217996]
[1749032006745,1.24742622,105860.0,105850.0,1.05937996]
[1749032008090,1.24742622,105860.0,105850.0,0.67729996]
[1749032008506,1.24742622,105860.0,105850.0,1.05885996]
[1749032008692,0.85507969,105860.0,105850.0,1.05881996]
[1749032009330,0.85507969,105860.0,105850.0,1.45116649]
[1749032009948,0.85507969,105860.0,105850.0,1.05881996]
[1749032011228,0.85507969,105860.0,105850.0,1.44916649]
[1749032011460,0.85507969,105860.0,105850.0,1.44716649]
[1749032011690,0.85507969,105860.0,105850.0,1.45316649]
[1749032013052,0.85507969,105860.0,105850.0,1.79316649]
[1749032016548,0.85507969,105860.0,105850.0,2.09316649]
[1749032016962,0.85507969,105860.0,105850.0,2.12131923]
[1749032017393,0.85507969,105860.0,105850.0,2.11831923]
[1749032017595,0.85507969,105860.0,105850.0,3.00681923]
[1749032017979,0.85507969,105860.0,105850.0,3.01181923]
[1749032018179,0.85507969,105860.0,105850.0,3.11116923]
[1749032020286,0.85507969,105860.0,105850.0,2.71116923]
[1749032020686,0.85507969,105860.0,105850.0,2.78548937]
[1749032020890,0.85507969,105860.0,105850.0,3.1778359]
[1749032021540,0.0011875,105870.0,105850.0,3.1406359]
[1749032021747,0.0011875,105890.0,105870.0,0.3]
[1749032021972,0.00123546,105890.0,105880.0,0.92186337]
[1749032022183,0.39358199,105890.0,105880.0,0.52851515]
[1749032022394,0.39358199,105890.0,105880.0,0.52847515]
[1749032022621,0.39358199,105890.0,105880.0,0.49247515]
[1749032022826,0.41278199,105890.0,105880.0,0.11039515]
[1749032023037,0.41278199,105890.0,105880.0,0.49267515]
[1749032023241,0.02043546,105890.0,105880.0,0.49271515]
[1749032024096,0.02043546,105890.0,105880.0,0.49363515]
[1749032024945,0.02043546,105890.0,105880.0,0.49563515]
[1749032025153,0.00123546,105890.0,105880.0,0.49563515]
[1749032027967,0.00123546,105890.0,105880.0,0.11339515]
[1749032028172,0.42874646,105890.0,105880.0,0.11339515]
[1749032028377,0.42874646,105890.0,105880.0,0.49551515]
[1749032028378,0.41104646,105890.0,105880.0,0.49551515]
[1749032029009,0.42864646,105890.0,105880.0,0.49551515]
[1749032029212,0.42864646,105890.0,105880.0,0.49547515]
[1749032029599,0.00123546,105890.0,105880.0,0.49547515]
[1749032029806,0.39324646,105890.0,105880.0,0.49547515]
[1749032030918,0.00123546,105890.0,105880.0,0.49547515]
[1749032032353,0.00123546,105890.0,105880.0,0.53267515]
[1749032032574,0.00123546,105890.0,105880.0,0.83267515]
[1749032032787,0.00123546,105890.0,105880.0,0.53267515]
[1749032041185,0.016992,105910.0,105900.0,0.35144085]
[1749032041437,0.016992,105910.0,105900.0,1.12557731]
[1749032041649,0.01747154,105910.0,105900.0,1.12557731]
[1749032042495,0.01747154,105910.0,105900.0,1.12757731]
[1749032043119,0.01747154,105910.0,105900.0,1.12745562]
[1749032043342,0.01747154,105910.0,105900.0,1.12845562]
[1749032043794,0.01747154,105910.0,105900.0,1.12545562]
[1749032043996,0.01747154,105910.0,105900.0,1.13145562]
[1749032045494,0.01747154,105910.0,105900.0,1.13125562]
[1749032047216,0.01747154,105910.0,105900.0,2.00976662]
[1749032047652,0.01747154,105910.0,105900.0,1.61775562]
[1749032048081,0.01747154,105910.0,105900.0,2.00976662]
[1749032048770,0.01747154,105910.0,105900.0,1.61775562]
[1749032050487,0.41164335,105930.0,105900.0,1.61775562]
[1749032050488,0.00153235,105930.0,105920.0,0.377]
[1749032050703,0.00167613,105930.0,105920.0,1.1258143]
[1749032051156,0.00167613,105930.0,105920.0,1.1249143]
[1749032051362,0.00167613,105930.0,105920.0,1.15297617]
[1749032051578,0.00167613,105930.0,105920.0,1.15597617]
[1749032053073,0.00167613,105930.0,105920.0,1.15897617]
[1749032053296,0.00167613,105930.0,105920.0,2.35202802]
[1749032053530,0.00167613,105930.0,105920.0,1.96937119]
[1749032053977,0.00167613,105930.0,105920.0,1.58809119]
[1749032054196,0.00167613,105930.0,105920.0,1.93335119]
[1749032054421,0.00167613,105930.0,105920.0,1.14381119]
[1749032054633,0.01927613,105930.0,105920.0,1.14377119]
[1749032054874,0.01927613,105930.0,105920.0,0.39442932]
[1749032055088,0.43008713,105930.0,105920.0,0.3745343]
[1749032055306,0.43008713,105930.0,105920.0,0.76735515]
[1749032055521,0.43008713,105930.0,105920.0,1.07135515]
[1749032055522,0.03807613,105930.0,105920.0,1.07135515]
[1749032055747,0.03807613,105930.0,105920.0,0.7584943]
[1749032056215,0.03807613,105930.0,105920.0,0.77319515]
[1749032063719,0.03807613,105930.0,105920.0,0.77263515]
[1749032066944,0.03807613,105930.0,105920.0,0.39007515]
[1749032067153,0.03807613,105930.0,105920.0,0.77263515]
[1749032068445,0.43008713,105930.0,105920.0,0.48055515]
[1749032068658,0.43008713,105930.0,105920.0,0.77259515]
[1749032068873,0.43008713,105930.0,105920.0,0.7580543]
[1749032069346,0.43008713,105930.0,105920.0,0.7580143]
[1749032069861,0.43008713,105930.0,105920.0,0.7500143]
[1749032070300,0.43008713,105930.0,105920.0,0.7530143]
[1749032070537,0.43008713,105930.0,105920.0,0.4610143]
[1749032070756,0.43008713,105930.0,105920.0,0.7529343]
[1749032070888,0.43008713,105930.0,105920.0,0.4610143]
[1749032071120,0.43008713,105930.0,105920.0,0.7558943]
[1749032072169,0.77008713,105930.0,105920.0,0.4640143]
[1749032072378,0.77008713,105930.0,105920.0,0.7558143]
[1749032073013,0.43008713,105930.0,105920.0,0.7558143]
[1749032073956,0.82209813,105930.0,105920.0,0.7556943]
[1749032074180,0.82209813,105930.0,105920.0,0.36816]
[1749032074390,0.82209813,105930.0,105920.0,0.6598]
[1749032075022,0.43008713,105930.0,105920.0,0.6598]
[1749032075425,0.82209813,105930.0,105920.0,0.65976]
[1749032076407,1.16209813,105930.0,105920.0,0.36816]
[1749032076615,1.16209813,105930.0,105920.0,0.6598]
[1749032076830,1.16209813,105930.0,105920.0,0.36816]
[1749032077064,1.16209813,105930.0,105920.0,0.66]
[1749032077308,1.16209813,105930.0,105920.0,0.27768]
[1749032077902,1.16209813,105930.0,105920.0,0.66]
[1749032078117,1.17141283,105930.0,105920.0,0.66]
[1749032078337,1.17141283,105930.0,105920.0,0.657]
[1749032078778,0.38739083,105930.0,105920.0,0.658]
[1749032078999,1.17141283,105930.0,105920.0,0.65792]